Workbook

Sheet Resumo
A1: ARSAE-MG
A2: 2ª Revisão Tarifária Periódica da Copasa MG - Audiência Pública nº 32/2020
A3: Esclarecimentos adicionais sobre o método de cálculo das proporções das tarifas de esgoto em relação às tarifas de água, no contexto das propostas apresentadas na Seção 5 da Nota Técnica CRE 13/2020 - Estrutura Tarifária,
A4: e sobre o cálculo da participação de cada mercado no custo total, para o cálculo dos ganhos de produtividade, apresentado na Seção 4 da NT CRE 11/2020
B7: Método e critérios de cálculo das proporções das tarifas de esgoto em relação às tarifas de água | O7: Cálculo da participação de cada mercado no custo da Copasa (Tabela 3 da NT CRE 11/2020)
B9: Conforme discutido na Nota Técnica CRE 13/2020, a Arsae-MG calculou valores preliminares para dois cenários:
O10: Custo/m³ com base nos dados de 2019 | S10: Custo médio relativo
B11: Cenário ideal | H11: Cenário alternativo | O11: Custo médio água | P11: =ROUND('Critérios e resultados em R$'!O31,2) -> 4.86 | R11: Mercado água | S11: =P11/SUM($P$11:$P$13) -> 0.474609375
B12: Tarifas de água, EDC e EDT totalmente aderentes aos respectivos custos | H12: Tarifa de água subsidia o tratamento de esgoto; tarifa de esgoto cobre o custo da coleta | O12: Custo médio coleta | P12: =ROUND('Critérios e resultados em R$'!O32,2) -> 3.31 | R12: Mercado EDC | S12: =P12/SUM($P$11:$P$13) -> 0.3232421875
O13: Custo médio tratamento | P13: =ROUND('Critérios e resultados em R$'!O33,2) -> 2.07 | R13: Mercado EDT | S13: =P13/SUM($P$11:$P$13) -> 0.2021484375
B14: EDC/Água = 68% e EDT/Água = 111% | H14: EDC/Água = 48% | O14: * apenas custos que devem ser cobertos pela receita tarifária, ou seja, calculados com critérios regulatórios, apesar das simplificações.
B16: Os percentuais acima advêm do arredondamento dos resultados descritos na próxima aba, por simplificação.
B17: EDC/água: | C17: ='Critérios e resultados em R$'!P32 -> 0.6806817633 | D17: EDT/água: | E17: ='Critérios e resultados em R$'!P34 -> 1.10761112 | H17: EDC/água: | I17: ='Critérios e resultados em R$'!T32 -> 0.4770255516

Sheet Critérios e resultados em R$
A1: ARSAE-MG
A2: Esclarecimentos e informações adicionais sobre o método de cálculo das proporções das tarifas de esgoto em relação às tarifas de água, no contexto das propostas apresentadas na Seção 5 da Nota Técnica CRE 13/2020 - Estrutura Tarifária
B5: Tabela 15 – Critérios de cálculo da tarifa necessária para cobrir os custos de cada serviço (abastecimento de água, coleta de esgoto e tratamento de esgoto) separadamente | G5: Somatório dos valores calculados para cada município, considerando os municípios listados na aba "Municípios"
B8: Grupo | C8: Itens | D8: Fonte ou forma de cálculo | E8: Observação | G8: Água | H8: check | I8: Coleta de esgoto | J8: check | K8: Tratamento de esgoto | L8: check
B9: Custos Operacionais (1) | C9: Energia elétrica, pessoal, combustíveis, material de tratamento, manutenção, serviços de terceiros, dentre outros | D9: Valores extraídos da contabilidade por município, considerando a classificação regulatória das contas contábeis definida pela Arsae-MG | G9: 1782581243 | I9: 470688617 | K9: 270299943.8
B10: Tributos e Outras Obrigações (2) | C10: PIS/Pasep e Cofins | D10: 7,51% da receita tarifária (cálculo circular) | E10: 7,51% foi o percentual de PIS/Pasep e Cofins observado em 2019, líquido de parte da recuperação de crédito tributário. A outra parte da recuperação já está deduzida nos custos operacionais que geraram a recuperação, com a mudança iniciada pela Copasa no 3º tri/2019. | G10: 217208907.5 | H10: =G10/G21 -> 0.0751 | I10: 103192390.8 | J10: =I10/I21 -> 0.0751 | K10: 49638509.16 | L10: =K10/K21 -> 0.07509999999
C11: TFAS (taxa de fiscalização) | D11: nº de economias * 1,2022 * Ufemg 2019 | E11: No cálculo do custo do serviço de água, apenas o nº de economias de água; nos cálculos dos custos dos serviços de coleta e de tratamento, economias de esgoto (EDC+EDT) proporcionalizadas em relação ao atendimento com coleta e tratamento, da seguinte forma: coleta: (econ. coleta)*(econ. coleta)/(econ. coleta + econ. tratamento); tratamento: (econ. coleta)*(econ. tratamento)/(econ. coleta + econ. tratamento). | G11: 22205358.88 | I11: 9349771.147 | K11: 6107516.431
C12: Outros tributos e taxas | D12: Valores extraídos da contabilidade por município | G12: 5028214.96 | I12: 1545646.41 | K12: 1065684.03
B13: Programas Especiais (3) | C13: Proteção de Mananciais | D13: 0,5% da receita tarifária (cálculo circular) | G13: 14461312.08 | H13: =G13/G21 -> 0.005 | I13: 6870332.275 | J13: =I13/I21 -> 0.005 | K13: 3304827.507 | L13: =K13/K21 -> 0.005
B14: Custos de Capital (4) | C14: Amortização/depreciação | D14: Depreciação projetada próximos 12 meses | E14: Considerando vidas úteis conforme Tabela 4 da NT CRE 10/2020 | G14: 361573840.2 | I14: 283963553 | K14: 148645187.6
C15: Remuneração da base de ativos | D15: WACC preliminar (7,44%) * base residual atualizada | G15: 371911517.7 | I15: 340975367.8 | K15: 139492763
C16: Remuneração da NCG | D16: WACC * 1,15% * receita tarifária (cálculo circular) | E16: O percentual de 1,15% se refere a quanto o estoque de materiais de custeio representou na receita tarifária de 2019. | G16: 2474619.724 | H16: =G16/7.44%/G21 -> 0.0115 | I16: 1175651.259 | J16: =I16/7.44%/I21 -> 0.0115 | K16: 565522.083 | L16: =K16/7.44%/K21 -> 0.0115
C17: Tributos sobre o lucro | D17: 34% * base de incidência de IR e CSLL (cálc. circular) | E17: A base de incidência dos tributos sobre o lucro (IRPJ e CSLL) foi calculada a partir do montante de Custos de Capital, deduzindo-se: depreciação contábil; encargos de empréstimos; estimativa de distribuição de 29,41% do lucro em forma de JCP e estimativa de pagamento de PLR correspondente a 25% do dividendo mínimo obrigatório. | G17: 114294985.3 | I17: 130743493.7 | K17: 51070705.94
B18: Rec. Irrecuperáveis (5) | C18: Receitas Irrecuperáveis (inadimplência) | D18: 2,35% da receita tarifária (cálculo circular) | E18: 2,35% é o percentual de RI resultante de cálculo preliminar com a metodologia de curva de aging, conforme exposto na NT CRE 09/2020 | G18: 67968166.79 | H18: =G18/G21 -> 0.0235 | I18: 32290561.69 | J18: =I18/I21 -> 0.0235 | K18: 15532689.28 | L18: =K18/K21 -> 0.0235
B19: Receita Requerida (6) | C19: Receita total requerida | D19: (1) + (2) + (3) + (4) + (5) | G19: =SUM(G9:G18) -> 2959708166 | I19: =SUM(I9:I18) -> 1380795385 | K19: =SUM(K9:K18) -> 685723348.9
B20: Outras Receitas (7) | C20: Outras Receitas (receitas não tarifárias) | D20: Valores extraídos da contabilidade por município | E20: Apenas a parcela de outras receitas considerada na aferição do equilíbrio econômico-financeiro, conforme indicado na Nota Técnica CRE 09/2020, exceto em relação à receita de resíduos sólidos, que não foi contemplada aqui. | G20: 67445749.75 | I20: 6728929.97 | K20: 24757847.39
B21: Receita Tarifária (8) | C21: Receita tarifária necessária | D21: (6) - (7) | G21: =G19-G20 -> 2892262416 | I21: =I19-I20 -> 1374066455 | K21: =K19-K20 -> 660965501.5
B22: Volume (m³) | C22: Volume referente a cada serviço (m³) | D22: Soma dos volumes faturados mensais referentes a cada serviço 2019 (Sicom) | E22: O volume referente ao serviço de coleta de esgoto é ajustado (EDC = EDC + EDT), pois todo esgoto tratado também é coletado. | G22: 595466723.4 | I22: 415607546.4 | K22: 318744409.5
B23: Custo médio ou tarifa média | C23: Custo/m³ ou tarifa necessária/m³ | D23: (8) / volume faturado de cada serviço | G23: =G21/G22 -> 4.857135257 | H23: /m³ | I23: =I21/I22 -> 3.306163392 | J23: /m³ | K23: =K21/K22 -> 2.073653629 | L23: /m³
B24: Não foram considerados os pagamentos de cobrança por uso dos recursos hídricos e os repasses a Fundos Municipais de Saneamento Básico, que, até o momento, se aplicam a apenas uma parcela dos municípios. | N24: Proporções das tarifas de esgoto em relação à água considerando o cenário ideal (1) e o cenário alternativo (2)
B26: Os dados extraídos da contabilidade por município (custos operacionais, outros tributos e taxas e outras receitas) foram separados entre os serviços de água, coleta e tratamento de esgoto com base nas indicações da própria Copasa na coluna denominada “Negócio”. A Copasa classifica os custos e receitas em quatro negócios, indicados pelas letras A, E, T e L. Considerou-se A = abastecimento de água; E = coleta de esgoto; T = tratamento de esgoto e L = resíduos sólidos (expurgados). As classificações foram conferidas com a coluna “Atividade”. A Copasa classifica os custos e receitas em diversas atividades dentro de cada negócio, algumas diretamente associáveis a cada serviço (captação de água, distribuição de água, operação água, produção de água, tratamento de água, coleta de esgoto, tratamento de esgoto e aterro sanitário) e outras não diretamente associáveis (comercial local, despesa manutenção, despesa pré-operacional, obras em andamento). Em alguns pouquíssimos casos em que foi observada divergência entre as duas colunas, considerou-se a classificação mais condizente com o nome da rubrica.
N27: 1 - Tarifas de água, EDC e EDT totalmente aderentes aos respectivos custos | R27: 2 - Tarifa de água subsidia o tratamento de esgoto; tarifa de esgoto cobre o custo da coleta
O30: Custo/m³ | P30: (%) Água | S30: Custo/m³ | T30: (%) Água
N31: Água | O31: =G23 -> 4.857135257 | R31: Água | S31: =O31+O33 -> 6.930788886
N32: Coleta esgoto | O32: =I23 -> 3.306163392 | P32: =O32/O31 -> 0.6806817633 | R32: Esgoto | S32: =O32 -> 3.306163392 | T32: =S32/S31 -> 0.4770255516
N33: Tratamento esgoto | O33: =K23 -> 2.073653629 | P33: =O33/O31 -> 0.4269293564
N34: Esgoto Total | O34: =O32+O33 -> 5.379817021 | P34: =O34/O31 -> 1.10761112

Sheet Modelo planilha cálculo
A1: ARSAE-MG
A2: Esclarecimentos e informações adicionais sobre o método de cálculo das proporções das tarifas de esgoto em relação às tarifas de água, no contexto das propostas apresentadas na Seção 5 da Nota Técnica CRE 13/2020 - Estrutura Tarifária
A3: Modelo de planilha de cálculo, simplificado. O cálculo feito pela Arsae-MG para chegar aos resultados apresentados na NT CRE 13/2020 e na aba anterior desta planilha foi por município e, em seguida, os resultados de receita tarifária necessária encontrados para cada município foram somados conforme equações apresentadas na aba "resumo" para cálculo das tarifas médias por serviço. As informações por município não são apresentadas aqui devido ao seu caráter sigiloso.
D6: Classificação regulatória | H6: ÁGUA | I6: COLETA DE ESGOTO | J6: TRATAMENTO DE ESGOTO
E7: Grupo | G7: Subgrupo
E8: Custos Operacionais (1) | G8: Aluguel
G9: Atendimento Telefônico
G10: Autosserviços de Água e Esgoto
G11: Combustíveis e Lubrificantes
G12: Comercialização
G13: Comunicação, Publicidade e Propaganda Legal
G14: Convênios
G15: Energia Elétrica
G16: Indenizações
G17: Manutenção
G18: Material de Tratamento
G19: Outros Materiais
G20: Pessoal
G21: Serviços de Terceiros
G22: Telecomunicação
G23: Treinamento
G24: Outros Custos Operacionais
G25: Total de Custos Operacionais | H25: ='Critérios e resultados em R$'!G9 -> 1782581243 | I25: ='Critérios e resultados em R$'!I9 -> 470688617 | J25: ='Critérios e resultados em R$'!K9 -> 270299943.8
C26: 0.0751 | E26: Tributos e Outras Obrigações (2) | G26: PIS/Pasep e Cofins | H26: =$C$26*H40 -> 217085024.9 | I26: =$C$26*I40 -> 103033732.8 | J26: =$C$26*J40 -> 49558881.55
C27: 3.5932 | G27: TFAS | H27: =IFERROR($C$27*1.2022*H47,"") -> 22205358.88 | I27: =IFERROR($C$27*1.2022*I47,"") -> 9349771.147 | J27: =IFERROR($C$27*1.2022*J47,"") -> 6107516.431
G28: Outros Tributos e Taxas | H28: ='Critérios e resultados em R$'!G12 -> 5028214.96 | I28: ='Critérios e resultados em R$'!I12 -> 1545646.41 | J28: ='Critérios e resultados em R$'!K12 -> 1065684.03
G29: Total de Tributos e Outras Obrigações | H29: =SUM(H26:H28) -> 244318598.7 | I29: =SUM(I26:I28) -> 113929150.4 | J29: =SUM(J26:J28) -> 56732082.01
C30: 0.005 | E30: Programas Especiais (3) | G30: Proteção de Mananciais | H30: =$C$30*H40 -> 14453064.24 | I30: =$C$30*I40 -> 6859769.163 | J30: =$C$30*J40 -> 3299526.069
E31: Custos de Capital (4) | G31: Amortização/depreciação | H31: ='Base de ativos'!D8 -> 361573840.2 | I31: ='Base de ativos'!D9 -> 283963553 | J31: ='Base de ativos'!D10 -> 148645187.6
G32: Tributos sobre o lucro | H32: =H60 -> 112817723.3 | I32: =I60 -> 128851546.5 | J32: 50121171.14
C33: 0.0744 | G33: Remuneração da base de ativos | H33: =C33*'Base de ativos'!C8 -> 371911517.7 | I33: =C33*'Base de ativos'!C9 -> 340975367.8 | J33: =C33*'Base de ativos'!C10 -> 139492763
C34: =C33*1.15% -> 0.0008556 | G34: Remuneração da NCG | H34: =$C$34*H40 -> 2473208.353 | I34: =$C$34*I40 -> 1173843.699 | J34: 564614.9008
G35: Total de Custos de Capital | H35: =SUM(H31:H34) -> 848776289.5 | I35: =SUM(I31:I34) -> 754964311 | J35: 338823736.7
C36: 0.0235 | E36: RI (5) | G36: Receitas Irrecuperáveis | H36: =$C$36*H40 -> 67929401.92 | I36: =$C$36*I40 -> 32240915.06 | J36: 15507772.52
E37: RR | G37: Receita Requerida = (1) + (2) + (3) + (4) + (5) | H37: =H25+H29+H30+H35+H36 -> 2958058598 | I37: =I25+I29+I30+I35+I36 -> 1378682763 | J37: 684663061.1
B38: Para circular: | E38: OR | G38: Outras Receitas | H38: ='Critérios e resultados em R$'!G20 -> 67445749.75 | I38: ='Critérios e resultados em R$'!I20 -> 6728929.97 | J38: ='Critérios e resultados em R$'!K20 -> 24757847.39
B39: =SUM(H39:J39) -> 4922471894 | E39: RT base | G39: Receita Tarifária necessária = RR - OR | H39: =H37-H38 -> 2890612848 | I39: =I37-I38 -> 1371953833 | J39: 659905213.7
B40: =SUM(H40:J40) -> 4922471894 | G40: Valores para cálculo circular: | H40: 2890612848 | I40: 1371953833 | J40: 659905213.7
B41: =soma_colar_para_macro=soma_resultado_para_macro -> TRUE | E41: Contabilidade
E42: % RT
E43: Cálculo específico
G45: Volume faturado (m³) 12 meses | H45: ='Critérios e resultados em R$'!G22 -> 595466723.4 | I45: 415607546.4 | J45: 318744409.5
G47: Nº de economias para TFAS | H47: 5140432.75 | I47: 2164426.618 | J47: 1413860.396 | K47: =I47+J47 -> 3578287.014
G49: Tarifa média (R$/m³) | H49: =IFERROR(H39/H45,"") -> 4.854365046 | I49: =IFERROR(I39/I45,"") -> 3.301080177 | J49: 2.070327178
H50: =H49-'Critérios e resultados em R$'!G23 -> -0.002770211395 | I50: =I49-'Critérios e resultados em R$'!I23 -> -0.005083214963 | J50: =J49-'Critérios e resultados em R$'!K23 -> -0.00332645142
G53: Alíquota tributos sobre o lucro | H53: 0.34 | I53: 0.34 | J53: 0.34
C54: =soma_tributos_colar_para_macro=soma_tributos_para_macro -> TRUE | E54: =SUM(H54:J54) -> 1942564337 | G54: Custos de capital | H54: 848776289.5 | I54: 754964311 | J54: 338823736.7
C55: =SUM(H52:J52) -> 0 | E55: =SUM(H35:J35) -> 1942564337 | G55: Depreciação contábil | H55: 268760673.5 | I55: 205576961.8 | J55: 114022041.3
G56: Encargos de empréstimos | H56: 144032675.5 | I56: 51441862.63 | J56: 31108940.99
C57: =Soma_colar_JCP=Soma_JCP_para_macro -> TRUE | E57: =SUM(H57:J57) -> 219630980.1 | F57: a | G57: (-) Distribuição de 29,41% em forma de JCP | H57: 84918022.2 | I57: 96986698.24 | J57: 37726259.67
C58: =Soma_colar_JCP=Soma_JCP_para_macro -> TRUE | E58: =SUM(H58:J58) -> 49783022.16 | F58: b | G58: (-) Participação nos Lucros e Resultados | H58: 19248085.03 | I58: 21983651.6 | J58: 8551285.524
G59: (=) Base de cálculo de IRPJ e CSLL | H59: =H54-H55-H56-H57-H58 -> 331816833.2 | I59: =I54-I55-I56-I57-I58 -> 378975136.7 | J59: 147415209.2
G60: (-) Tributos sobre o lucro (34% * base de cálculo acima) | H60: =IF(H59>0,H59*H53,0) -> 112817723.3 | I60: 128851546.5 | J60: 50121171.14
G61: (+) JCP calculado acima | H61: =H57 -> 84918022.2 | I61: 96986698.24 | J61: 37726259.67
G62: (=) Lucro Líquido (Base de cálculo do JCP) | H62: =H59-H60+H61 -> 303917132.1 | I62: 347110288.4 | J62: 135020297.8
G63: (+) PLR | H63: =H58 -> 19248085.03 | I63: 21983651.6 | J63: 8551285.524
G64: (=) Base de cálculo da PLR | H64: =H62+H63 -> 323165217.1 | I64: 369093940 | J64: 143571583.3
G66: Cálculo circular (copia os resultados abaixo e cola como valor nas linhas "a" e "b" acima)
E67: =SUM(H67:J67) -> 219630980.1 | G67: (-) Distribuição de 29,41% em forma de JCP | H67: =IF(H62>0,(25%/(1-15%))*95%*H62,0) -> 84918022.2 | I67: =IF(I62>0,(25%/(1-15%))*95%*I62,0) -> 96986698.24 | J67: 37726259.67
E68: =SUM(H68:J68) -> 49783022.16 | G68: (-) Participação nos Lucros e Resultados | H68: =IF(H64>0,25%*25%*(H64-IF(H62>0,5%*H62,0)),0) -> 19248085.03 | I68: =IF(I64>0,25%*25%*(I64-IF(I62>0,5%*I62,0)),0) -> 21983651.6 | J68: 8551285.524

Sheet Municípios
A1: ARSAE-MG
A2: Esclarecimentos e informações adicionais sobre o método de cálculo das proporções das tarifas de esgoto em relação às tarifas de água, no contexto das propostas apresentadas na Seção 5 da Nota Técnica CRE 13/2020 - Estrutura Tarifária
B5: MUNICÍPIOS INCLUÍDOS NA ANÁLISE
B7: Água | C7: Coleta de esgoto | D7: Tratamento de esgoto
B8: ABADIA DOS DOURADOS | C8: ÁGUAS VERMELHAS | D8: ÁGUAS VERMELHAS
B9: ABAETÉ | C9: ALÉM PARAÍBA | D9: ALFENAS
B10: AÇUCENA | C10: ALFENAS | D10: ALMENARA
B11: ÁGUA BOA | C11: ALMENARA | D11: ALPINÓPOLIS
B12: ÁGUA COMPRIDA | C12: ALPINÓPOLIS | D12: ARAÇUAÍ
B13: ÁGUAS FORMOSAS | C13: ARAÇUAÍ | D13: ARAXÁ
B14: ÁGUAS VERMELHAS | C14: ARAXÁ | D14: ATALÉIA
B15: ALÉM PARAÍBA | C15: ARCEBURGO | D15: BELO HORIZONTE
B16: ALFENAS | C16: ATALÉIA | D16: BETIM
B17: ALFREDO VASCONCELOS | C17: BARBACENA | D17: BOM DESPACHO
B18: ALMENARA | C18: BELO HORIZONTE | D18: BOM REPOUSO
B19: ALPERCATA | C19: BETIM | D19: BORDA DA MATA
B20: ALPINÓPOLIS | C20: BOM DESPACHO | D20: BRASILÂNDIA DE MINAS
B21: ALTEROSA | C21: BOM REPOUSO | D21: BRASÍLIA DE MINAS
B22: ALTO JEQUITIBÁ | C22: BONFIM | D22: BUENO BRANDÃO
B23: ALTO RIO DOCE | C23: BORDA DA MATA | D23: BUENÓPOLIS
B24: ALVARENGA | C24: BOTELHOS | D24: CAMPINA VERDE
B25: ALVINÓPOLIS | C25: BRASILÂNDIA DE MINAS | D25: CAPETINGA
B26: ALVORADA DE MINAS | C26: BRASÍLIA DE MINAS | D26: CAPIM BRANCO
B27: AMPARO DA SERRA | C27: BRUMADINHO | D27: CAPITÃO ENÉAS
B28: ANDRADAS | C28: BUENO BRANDÃO | D28: CARATINGA
B29: ANDRELÂNDIA | C29: BUENÓPOLIS | D29: CARBONITA
B30: ANTÔNIO CARLOS | C30: BURITIS | D30: CARLOS CHAGAS
B31: ANTÔNIO DIAS | C31: CABO VERDE | D31: CARMO DO PARANAÍBA
B32: ANTÔNIO PRADO DE MINAS | C32: CALDAS | D32: CARMO DO RIO CLARO
B33: ARAÇAÍ | C33: CAMANDUCAIA | D33: CARNEIRINHO
B34: ARAÇUAÍ | C34: CAMPANHA | D34: CATUTI
B35: ARAPONGA | C35: CAMPINA VERDE | D35: CAXAMBU
B36: ARAXÁ | C36: CAMPO FLORIDO | D36: CENTRALINA
B37: ARCEBURGO | C37: CAPELINHA | D37: CLARO DOS POÇÕES
B38: ARCOS | C38: CAPETINGA | D38: CLÁUDIO
B39: AREADO | C39: CAPIM BRANCO | D39: CONCEIÇÃO DA BARRA DE MINAS
B40: ARINOS | C40: CAPITÃO ENÉAS | D40: CONCEIÇÃO DO MATO DENTRO
B41: ASTOLFO DUTRA | C41: CARATINGA | D41: CONQUISTA
B42: ATALÉIA | C42: CARBONITA | D42: CONSELHEIRO LAFAIETE
B43: AUGUSTO DE LIMA | C43: CARLOS CHAGAS | D43: CONTAGEM
B44: BAEPENDI | C44: CARMO DA CACHOEIRA | D44: CORAÇÃO DE JESUS
B45: BALDIM | C45: CARMO DO PARANAÍBA | D45: CORDISBURGO
B46: BAMBUÍ | C46: CARMO DO RIO CLARO | D46: CORINTO
B47: BARÃO DE COCAIS | C47: CARNEIRINHO | D47: CORONEL MURTA
B48: BARÃO DE MONTE ALTO | C48: CARVALHOS | D48: CRISTÁLIA
B49: BARBACENA | C49: CATAGUASES | D49: CURVELO
B50: BARRA LONGA | C50: CATUTI | D50: DESTERRO DO MELO
B51: BARROSO | C51: CAXAMBU | D51: DIVINÓPOLIS
B52: BELA VISTA DE MINAS | C52: CENTRALINA | D52: DIVISÓPOLIS
B53: BELMIRO BRAGA | C53: CLARO DOS POÇÕES | D53: DORES DO INDAIÁ
B54: BELO HORIZONTE | C54: CLÁUDIO | D54: ESMERALDAS
B55: BELO VALE | C55: CONCEIÇÃO DA BARRA DE MINAS | D55: EXTREMA
B56: BERIZAL | C56: CONCEIÇÃO DO MATO DENTRO | D56: FRANCISCO DUMONT
B57: BETIM | C57: CONCEIÇÃO DO PARÁ | D57: FRUTAL
B58: BICAS | C58: CONGONHAL | D58: FUNILÂNDIA
B59: BIQUINHAS | C59: CONGONHAS | D59: GLAUCILÂNDIA
B60: BOM DESPACHO | C60: CONQUISTA | D60: GONÇALVES
B61: BOM JARDIM DE MINAS | C61: CONSELHEIRO LAFAIETE | D61: GRÃO MOGOL
B62: BOM JESUS DA PENHA | C62: CONTAGEM | D62: GUARDA-MOR
B63: BOM JESUS DO AMPARO | C63: CORAÇÃO DE JESUS | D63: IBIAÍ
B64: BOM JESUS DO GALHO | C64: CORDISBURGO | D64: IBIRITÉ
B65: BOM REPOUSO | C65: CORINTO | D65: ICARAÍ DE MINAS
B66: BONFIM | C66: CORONEL FABRICIANO | D66: IPATINGA
B67: BONFINÓPOLIS DE MINAS | C67: CORONEL MURTA | D67: ITACARAMBI
B68: BONITO DE MINAS | C68: CRISTÁLIA | D68: ITAJUBÁ
B69: BORDA DA MATA | C69: CRUZÍLIA | D69: ITAOBIM
B70: BOTELHOS | C70: CURVELO | D70: ITAPECERICA
B71: BRASILÂNDIA DE MINAS | C71: DELFINOPÓLIS | D71: ITURAMA
B72: BRASÍLIA DE MINAS | C72: DESTERRO DO MELO | D72: JABOTICATUBAS
B73: BRASÓPOLIS | C73: DIAMANTINA | D73: JAÍBA
B74: BRAÚNAS | C74: DIVINO | D74: JANAÚBA
B75: BRUMADINHO | C75: DIVINÓPOLIS | D75: JANUÁRIA
B76: BUENO BRANDÃO | C76: DIVISÓPOLIS | D76: JEQUITINHONHA
B77: BUENÓPOLIS | C77: DORES DO INDAIÁ | D77: JOAÍMA
B78: BUGRE | C78: ENGENHEIRO NAVARRO | D78: JOÃO PINHEIRO
B79: BURITIS | C79: ESMERALDAS | D79: JURAMENTO
B80: CABO VERDE | C80: ESTRELA DO INDAIÁ | D80: JUVENÍLIA
B81: CACHOEIRA DE MINAS | C81: ESTRELA DO SUL | D81: LAGOA DOS PATOS
B82: CAETANÓPOLIS | C82: EXTREMA | D82: LAGOA SANTA
B83: CAIANA | C83: FAMA | D83: LAVRAS
B84: CAJURI | C84: FRANCISCO DUMONT | D84: LIMEIRA DO OESTE
B85: CALDAS | C85: FRONTEIRA | D85: LONTRA
B86: CAMACHO | C86: FRUTAL | D86: MANGA
B87: CAMANDUCAIA | C87: FUNILÂNDIA | D87: MARTINHO CAMPOS
B88: CAMPANÁRIO | C88: GLAUCILÂNDIA | D88: MATA VERDE
B89: CAMPANHA | C89: GONÇALVES | D89: MATEUS LEME
B90: CAMPESTRE | C90: GRÃO MOGOL | D90: MATOZINHOS
B91: CAMPINA VERDE | C91: GUARACIABA | D91: MINAS NOVAS
B92: CAMPO AZUL | C92: GUARDA-MOR | D92: MIRABELA
B93: CAMPO FLORIDO | C93: GUAXUPÉ | D93: MONTALVÂNIA
B94: CAMPOS ALTOS | C94: GUIMARÂNIA | D94: MONTE AZUL
B95: CAMPOS GERAIS | C95: IBIAÍ | D95: MONTES CLAROS
B96: CANA VERDE | C96: IBIRACI | D96: MORADA NOVA DE MINAS
B97: CANAÃ | C97: IBIRITÉ | D97: NANUQUE
B98: CANÁPOLIS | C98: ICARAÍ DE MINAS | D98: NOVA LIMA
B99: CANDEIAS | C99: IGARAPÉ | D99: NOVA PORTEIRINHA
B100: CANTAGALO | C100: INDAIABIRA | D100: NOVA SERRANA
B101: CAPARAÓ | C101: INHAPIM | D101: OURO BRANCO
B102: CAPELA NOVA | C102: IPATINGA | D102: PARACATU
B103: CAPELINHA | C103: IPUIÚNA | D103: PATOS DE MINAS
B104: CAPETINGA | C104: ITABIRINHA | D104: PEDRALVA
B105: CAPIM BRANCO | C105: ITACARAMBI | D105: PEDRAS DE MARIA DA CRUZ
B106: CAPINÓPOLIS | C106: ITAJUBÁ | D106: PEDRO LEOPOLDO
B107: CAPITÃO ENÉAS | C107: ITAMARANDIBA | D107: PORTEIRINHA
B108: CAPITÓLIO | C108: ITAOBIM | D108: POUSO ALEGRE
B109: CAPUTIRA | C109: ITAPECERICA | D109: PRADOS
B110: CARANDAÍ | C110: ITAPEVA | D110: RESENDE COSTA
B111: CARATINGA | C111: ITURAMA | D111: RESPLENDOR
B112: CARBONITA | C112: JABOTICATUBAS | D112: RIACHO DOS MACHADOS
B113: CAREAÇU | C113: JACINTO | D113: RIBEIRÃO DAS NEVES
B114: CARLOS CHAGAS | C114: JAÍBA | D114: RIO PARDO DE MINAS
B115: CARMO DA CACHOEIRA | C115: JANAÚBA | D115: SALINAS
B116: CARMO DO PARANAÍBA | C116: JANUÁRIA | D116: SANTA LUZIA
B117: CARMO DO RIO CLARO | C117: JEQUITINHONHA | D117: SANTA RITA DO SAPUCAÍ
B118: CARNEIRINHO | C118: JOAÍMA | D118: SANTANA DA VARGEM
B119: CARVALHÓPOLIS | C119: JOÃO PINHEIRO | D119: SANTO ANTÔNIO DO MONTE
B120: CARVALHOS | C120: JUATUBA | D120: SANTO ANTÔNIO DO RETIRO
B121: CASCALHO RICO | C121: JURAMENTO | D121: SÃO FRANCISCO
B122: CÁSSIA | C122: JUVENÍLIA | D122: SÃO GOTARDO
B123: CATAGUASES | C123: LAGOA DOS PATOS | D123: SÃO JOÃO DA PONTE
B124: CATUTI | C124: LAGOA SANTA | D124: SÃO JOÃO DEL REI
B125: CAXAMBU | C125: LAVRAS | D125: SÃO JOÃO DO PARAÍSO
B126: CEDRO DO ABAETÉ | C126: LEANDRO FERREIRA | D126: SÃO JOSÉ DA LAPA
B127: CENTRALINA | C127: LIMEIRA DO OESTE | D127: SÃO ROQUE DE MINAS
B128: CHÁCARA | C128: LONTRA | D128: SÃO SEBASTIÃO DO PARAÍSO
B129: CHAPADA GAÚCHA | C129: MALACACHETA | D129: SERRA DOS AIMORÉS
B130: CIPOTÂNEA | C130: MANGA | D130: SERRO
B131: CLARO DOS POÇÕES | C131: MARTINHO CAMPOS | D131: TAIOBEIRAS
B132: CLÁUDIO | C132: MATA VERDE | D132: TEÓFILO OTONI
B133: COIMBRA | C133: MATEUS LEME | D133: TRÊS CORAÇÕES
B134: COLUNA | C134: MATOZINHOS | D134: Três Marias
B135: COMENDADOR GOMES | C135: MEDINA | D135: TURMALINA
B136: CONCEIÇÃO DA APARECIDA | C136: MINAS NOVAS | D136: UNIÃO DE MINAS
B137: CONCEIÇÃO DA BARRA DE MINAS | C137: MIRABELA | D137: VARGINHA
B138: CONCEIÇÃO DO MATO DENTRO | C138: MONTALVÂNIA | D138: VÁRZEA DA PALMA
B139: CONCEIÇÃO DO PARÁ | C139: MONTE AZUL | D139: VARZELÂNDIA
B140: CONCEIÇÃO DO RIO VERDE | C140: MONTES CLAROS | D140: VAZANTE
B141: CONCEIÇÃO DOS OUROS | C141: MORADA NOVA DE MINAS | D141: VESPASIANO
B142: CÔNEGO MARINHO | C142: MUTUM
B143: CONGONHAL | C143: NANUQUE
B144: CONGONHAS | C144: NATÉRCIA
B145: CONQUISTA | C145: NOVA LIMA
B146: CONSELHEIRO LAFAIETE | C146: NOVA MÓDICA
B147: CONTAGEM | C147: NOVA PORTEIRINHA
B148: CORAÇÃO DE JESUS | C148: NOVA SERRANA
B149: CORDISBURGO | C149: NOVO CRUZEIRO
B150: CORDISLÂNDIA | C150: OURO BRANCO
B151: CORINTO | C151: OURO VERDE DE MINAS
B152: COROACI | C152: PARACATU
B153: COROMANDEL | C153: PASSABÉM
B154: CORONEL FABRICIANO | C154: PATOS DE MINAS
B155: CORONEL MURTA | C155: PEDRALVA
B156: CORONEL XAVIER CHAVES | C156: PEDRAS DE MARIA DA CRUZ
B157: CÓRREGO DANTA | C157: PEDRO LEOPOLDO
B158: CÓRREGO NOVO | C158: PERDÕES
B159: CRISTAIS | C159: PIRAPETINGA
B160: CRISTÁLIA | C160: PORTEIRINHA
B161: CRISTIANO OTONI | C161: POTÉ
B162: CRUCILÂNDIA | C162: POUSO ALEGRE
B163: CRUZEIRO DA FORTALEZA | C163: PRADOS
B164: CRUZÍLIA | C164: PRESIDENTE BERNARDES
B165: CUPARAQUE | C165: PRUDENTE DE MORAIS
B166: CURRAL DE DENTRO | C166: RAPOSOS
B167: CURVELO | C167: RESENDE COSTA
B168: DATAS | C168: RESPLENDOR
B169: DELFINOPÓLIS | C169: RIACHO DOS MACHADOS
B170: DESTERRO DO MELO | C170: RIBEIRÃO DAS NEVES
B171: DIAMANTINA | C171: RIO CASCA
B172: DIONÍSIO | C172: RIO PARDO DE MINAS
B173: DIVINÉSIA | C173: SABARÁ
B174: DIVINO | C174: SALINAS
B175: DIVINO DAS LARANJEIRAS | C175: SANTA LUZIA
B176: DIVINÓPOLIS | C176: SANTA MARIA DO SUAÇUÍ
B177: DIVISA ALEGRE | C177: SANTA RITA DE CALDAS
B178: DIVISA NOVA | C178: SANTA RITA DO SAPUCAÍ
B179: DIVISÓPOLIS | C179: SANTANA DA VARGEM
B180: DOM CAVATI | C180: SANTANA DO PARAÍSO
B181: DOM JOAQUIM | C181: SANTO ANTÔNIO DO MONTE
B182: DOM SILVÉRIO | C182: SANTO ANTÔNIO DO RETIRO
B183: DONA EUSÉBIA | C183: SANTOS DUMONT
B184: DORES DO INDAIÁ | C184: SÃO FRANCISCO
B185: DORES DO TURVO | C185: SÃO GONÇALO DO ABAETÉ
B186: DURANDÉ | C186: SÃO GOTARDO
B187: ENGENHEIRO CALDAS | C187: SÃO JOÃO DA PONTE
B188: ENGENHEIRO NAVARRO | C188: SÃO JOÃO DEL REI
B189: ENTRE FOLHAS | C189: SÃO JOÃO DO MANHUAÇU
B190: ENTRE RIOS DE MINAS | C190: SÃO JOÃO DO PARAÍSO
B191: ERVÁLIA | C191: SÃO JOÃO NEPOMUCENO
B192: ESMERALDAS | C192: SÃO JOAQUIM DE BICAS
B193: ESPERA FELIZ | C193: SÃO JOSÉ DA LAPA
B194: ESPINOSA | C194: SÃO JOSÉ DO JACURI
B195: ESTIVA | C195: SÃO ROMÃO
B196: ESTRELA DALVA | C196: SÃO ROQUE DE MINAS
B197: ESTRELA DO INDAIÁ | C197: São Sebastião do Maranhão
B198: ESTRELA DO SUL | C198: SÃO SEBASTIÃO DO PARAÍSO
B199: EUGENÓPOLIS | C199: SÃO TIAGO
B200: EXTREMA | C200: SAPUCAÍ-MIRIM
B201: FAMA | C201: SARZEDO
B202: FARIA LEMOS | C202: SERRA AZUL DE MINAS
B203: FELIXLÂNDIA | C203: SERRA DA SAUDADE
... 378 more rows

Sheet Base de ativos
A1: ARSAE-MG
A2: Esclarecimentos e informações adicionais sobre o método de cálculo das proporções das tarifas de esgoto em relação às tarifas de água, no contexto das propostas apresentadas na Seção 5 da Nota Técnica CRE 13/2020 - Estrutura Tarifária
B5: Valor residual e depreciação da base de ativos (BRE + BRA) - Base: Retrato de jun/19
C7: Valor residual | D7: Depreciação próximos 12 meses
B8: Água | C8: 4998810721 | D8: 361573840.2
B9: Coleta de esgoto | C9: 4583002256 | D9: 283963553
B10: Tratamento de esgoto | C10: 1874902729 | D10: 148645187.6
B11: * apenas municípios listados na aba "Municípios". Os ativos alocados para a "sede" foram rateados entre todos os municípios por número de economias atendidas com cada serviço. Os ativos dos sistemas compartilhados foram rateados a partir dos critérios ou proporções informados pela Copasa (Sistemas Onça, Arrudas e Ressaca/Sarandi com base no volume EDT dos municípios BH e Contagem, e demais sistemas rateados entre os municípios abrangidos conforme proporções informadas pela Copasa em abril/2019)
B12: ** por simplificação, foi dado tratamento igual aos ativos essenciais e acessórios.
